bitfinex/quotes_ETHUSD_20251230
["timestamp","ask_amount","ask_price","bid_price","bid_amount"]
[1767122314588,7.2906,2959.5,2958.9,2.2938]
[1767122317810,7.2906,2959.5,2958.5,3.38007334]
[1767122317811,7.2906,2959.4,2958.5,2.3116]
[1767122318025,7.2906,2959.4,2958.7,2.3116]
[1767122320524,7.2906,2959.3,2958.9,0.002]
[1767122321729,7.2906,2959.3,2958.9,2.3309]
[1767122321889,7.2916,2959.5,2958.9,2.3309]
[1767122324094,3.37996008,2959.5,2958.9,2.3309]
[1767122324295,7.2906,2959.4,2958.9,2.3309]
[1767122325120,0.001,2959.5,2959.1,2.3412]
[1767122325804,7.2906,2959.6,2959.1,2.3443]
[1767122326721,0.001,2959.8,2959.3,2.3524]
[1767122326923,0.001,2960.0,2959.3,2.3514]
[1767122327095,0.001,2960.0,2959.5,2.3514]
[1767122327432,7.484,2960.2,2959.5,2.3544]
[1767122329109,7.483,2960.1,2959.5,2.3544]
[1767122329419,7.483,2960.1,2959.5,3.37894691]
[1767122329721,7.483,2960.1,2959.6,2.362]
[1767122330028,7.483,2960.1,2959.7,2.362]
[1767122330592,7.483,2960.1,2959.2,2.3658]
[1767122331927,7.483,2960.1,2959.3,2.3696]
[1767122334031,7.483,2960.0,2959.3,2.3696]
[1767122335924,10.86144304,2960.0,2959.3,2.3696]
[1767122336129,7.483,2959.9,2959.3,2.3716]
[1767122338922,7.483,2959.9,2959.4,2.3945]
[1767122339730,7.484,2960.1,2959.4,2.3945]
[1767122341242,7.484,2960.1,2959.5,2.4047]
[1767122342026,0.001,2960.1,2959.5,2.4047]
[1767122342226,7.484,2960.1,2959.6,2.408]
[1767122343248,0.001,2960.3,2959.6,2.4092]
[1767122343449,7.484,2960.3,2959.6,2.4092]
[1767122343747,7.483,2960.2,2959.6,2.4092]
[1767122343909,7.483,2960.2,2959.4,2.4092]
[1767122344112,7.483,2960.2,2959.5,2.98823462]
[1767122344941,7.484,2960.2,2959.5,2.98823462]
[1767122345139,7.484,2960.2,2959.3,0.889]
[1767122345140,7.483,2960.1,2959.3,0.889]
[1767122345346,7.483,2960.1,2959.3,0.002]
[1767122345529,7.483,2960.1,2959.3,2.4176]
[1767122346551,7.483,2960.0,2959.3,2.4176]
[1767122347731,7.483,2960.0,2959.3,0.002]
[1767122349033,7.8152,2959.8,2959.3,0.002]
[1767122351424,3.37861024,2959.8,2959.3,0.002]
[1767122351651,7.8152,2959.7,2959.3,0.002]
[1767122352048,7.8152,2959.7,2958.9,4.26862468]
[1767122352256,7.8152,2959.7,2959.0,2.4418]
[1767122353324,7.8152,2959.7,2959.3,0.002]
[1767122356265,7.5129,2959.6,2958.9,0.889]
[1767122356631,7.5129,2959.6,2958.5,2.4597]
[1767122356833,7.5129,2959.6,2958.5,3.3467]
[1767122357269,7.5129,2959.4,2958.6,2.4624]
[1767122358288,7.5129,2959.4,2958.4,0.002]
[1767122358449,7.5129,2959.4,2958.4,2.467]
[1767122359247,7.5129,2959.3,2958.5,2.4677]
[1767122362143,7.5129,2959.2,2958.5,2.4677]
[1767122366688,7.5129,2959.1,2958.4,0.889]
[1767122366980,7.5129,2959.1,2958.4,3.3745]
[1767122367350,7.5129,2959.1,2958.5,2.4899]
[1767122367754,7.5129,2959.1,2958.5,0.002]
[1767122368065,8.0945311,2959.1,2958.5,2.4924]
[1767122371588,7.5129,2959.0,2958.5,0.002]
[1767122371778,7.5129,2959.0,2958.1,2.4995]
[1767122372181,7.5129,2958.4,2957.7,0.002]
[1767122372384,7.5129,2958.4,2957.7,2.5078]
[1767122372592,7.93939095,2958.4,2957.7,2.5078]
[1767122373693,7.5129,2958.9,2958.4,2.0815]
[1767122374863,7.5129,2958.9,2958.4,2.0835]
[1767122379698,7.5129,2958.9,2958.4,2.0995]
[1767122382399,7.5129,2958.9,2958.4,2.93891661]
[1767122382591,7.5129,2958.9,2958.5,2.105]
[1767122384810,0.001,2959.2,2958.7,2.1099]
[1767122385130,7.5139,2959.2,2958.7,2.1099]
[1767122385471,7.5139,2959.2,2958.8,2.1123]
[1767122385672,7.5139,2959.2,2958.8,2.95299661]
[1767122390592,7.5139,2959.2,2958.9,2.1263]
[1767122391004,3.37837837,2960.0,2958.9,2.1263]
[1767122391292,7.5811,2959.9,2959.4,2.1285]
[1767122392497,0.001,2960.2,2959.4,2.1285]
[1767122392669,7.5811,2960.1,2959.6,2.1307]
[1767122393396,0.001,2960.2,2959.8,2.1329]
[1767122393570,7.5821,2960.2,2959.8,2.1329]
[1767122394394,0.001,2960.1,2959.8,2.1329]
[1767122397475,7.5821,2960.2,2959.8,2.1404]
[1767122400784,0.001,2961.0,2960.0,10.81533228]
[1767122401000,7.2533,2961.2,2960.9,5.40766614]
[1767122401189,7.2533,2961.2,2960.8,7.6568]
[1767122401803,0.001,2961.3,2960.8,7.6568]
[1767122401992,0.001,2961.3,2961.0,7.6568]
[1767122402194,7.2543,2961.3,2960.9,6.71411275]
[1767122402500,7.2543,2961.3,2961.0,7.6568]
[1767122404004,0.001,2961.3,2961.0,7.6568]
[1767122405176,3.37728726,2961.9,2961.1,6.29466614]
[1767122405379,7.2533,2961.8,2961.3,13.06446614]
[1767122405611,7.2533,2961.8,2961.4,8.96324661]
[1767122405907,7.2533,2961.8,2961.4,7.6568]
[1767122407508,7.2533,2961.8,2959.8,0.30274]
[1767122407678,7.2533,2961.7,2960.7,7.6568]
[1767122407881,7.2533,2961.7,2960.8,8.5438]
[1767122408413,5.40766614,2961.6,2960.3,5.40766614]
[1767122408613,10.1289756,2961.8,2960.4,8.5438]
[1767122408614,7.2533,2961.3,2960.4,8.5438]
[1767122408788,7.2533,2961.3,2960.4,0.887]
[1767122408981,7.2533,2961.3,2960.4,8.5438]
[1767122409307,7.2533,2961.3,2960.4,7.6568]
[1767122409491,7.2533,2961.1,2960.4,8.5438]
[1767122409883,3.3763252,2961.8,2960.4,8.5438]
[1767122409884,0.32680178,2962.4,2960.5,7.2534]
[1767122410217,0.0575832,2965.1,2965.0,0.0773798]
[1767122410437,0.0575832,2965.1,2964.2,0.17631946]
[1767122410438,0.0575832,2965.3,2964.6,0.887]
[1767122410707,0.0575832,2965.3,2964.2,0.17631946]
[1767122410708,0.0575832,2964.3,2964.2,0.17631946]
[1767122411080,0.0575832,2964.7,2964.2,0.17631946]
[1767122411332,2.60708321,2964.3,2963.8,4.32933625]
[1767122411501,7.31402362,2964.7,2963.8,7.70331093]
[1767122411819,0.06072362,2965.0,2963.9,4.3293]
[1767122411820,0.001,2964.1,2963.9,4.3293]
[1767122412028,7.31402362,2964.9,2964.1,4.3293]
[1767122412186,7.2533,2964.9,2964.1,4.3293]
[1767122412587,7.2533,2964.9,2963.8,4.4083]
[1767122412588,0.06410256,2964.7,2963.8,4.4083]
[1767122412797,7.2533,2964.6,2963.8,7.78228186]
[1767122413009,7.2533,2964.4,2963.6,0.02086876]
[1767122413214,7.2533,2964.2,2963.6,0.02086876]
[1767122413585,7.2533,2964.0,2963.6,0.02086876]
[1767122413904,7.2533,2963.8,2962.8,3.37517446]
[1767122414211,7.2533,2963.8,2962.9,3.37505787]
[1767122414416,7.2533,2963.8,2962.8,3.37518318]
[1767122414597,7.2533,2964.0,2962.7,4.5477]
[1767122414792,7.2533,2963.8,2962.7,4.5477]
[1767122415199,7.2533,2963.8,2962.5,0.886]
[1767122415393,7.2533,2963.8,2962.5,3.3754152]
[1767122415599,7.2533,2963.8,2962.5,8.8579152]
[1767122415918,7.2533,2963.8,2962.6,0.88740402]
[1767122416092,7.2533,2963.8,2962.6,5.4898]
[1767122416296,0.0674946,2964.5,2962.7,7.224529]
[1767122416489,8.9376,2964.4,2962.8,6.3927]
[1767122416689,8.9376,2964.4,2963.1,2.6456]
[1767122416690,8.0516,2964.4,2963.1,2.6456]
[1767122417015,8.9376,2965.1,2963.5,5.5067]
[1767122417390,8.9376,2965.1,2963.6,6.74854906]
[1767122417606,8.0516,2965.1,2963.7,6.3996]
[1767122417913,8.9366,2965.1,2963.7,6.3996]
[1767122418118,8.0516,2965.1,2963.8,5.5126]
[1767122418310,8.0516,2965.1,2964.0,5.5193]
[1767122419804,8.0516,2965.1,2963.8,3.37400868]
[1767122420190,8.0516,2965.1,2963.6,9.78597138]
[1767122420191,8.0516,2965.1,2963.6,6.4118]
[1767122420415,8.0516,2965.1,2964.0,3.37374883]
[1767122420609,8.0516,2964.9,2964.0,3.37374883]
[1767122420993,8.0516,2965.6,2964.1,5.5343]
[1767122421194,0.0674946,2965.7,2964.1,5.5343]
[1767122421195,8.0516,2965.4,2964.1,5.5343]
[1767122421415,0.885,2965.3,2964.1,5.5343]
[1767122421725,8.0516,2965.2,2964.2,3.37359152]
[1767122422089,8.0516,2965.2,2963.3,5.5465]
[1767122422288,8.0516,2965.2,2963.5,3.37431563]
[1767122422289,8.0516,2965.1,2963.5,3.37431563]
[1767122422524,8.1190946,2965.1,2963.4,3.37449128]
[1767122422894,8.1190946,2965.1,2963.4,8.92099128]
[1767122423110,8.1190946,2965.1,2963.4,5.5465]
[1767122423513,8.0516,2964.8,2963.4,5.5465]
[1767122423798,8.0516,2964.6,2963.4,8.92092772]
[1767122424912,8.0516,2964.6,2963.4,12.29542998]
[1767122425220,0.885,2964.5,2963.5,5.59204388]
[1767122425721,0.885,2964.5,2963.6,3.37427453]
[1767122425929,0.885,2964.5,2963.7,5.5638]
[1767122426698,0.885,2965.1,2963.7,4.6842]
[1767122427000,8.0516,2965.0,2963.7,5.6039416]
[1767122427401,8.0516,2965.0,2963.7,5.5702]
[1767122427830,8.0516,2965.0,2963.9,4.6906]
[1767122428007,8.0516,2965.1,2963.9,4.6906]
[1767122428207,8.0516,2965.1,2964.1,4.7339]
[1767122429808,8.0516,2965.1,2964.2,6.74718304]
[1767122430014,0.885,2965.6,2964.3,4.7398]
[1767122430213,8.0516,2965.5,2964.3,4.7398]
[1767122430408,8.0516,2965.5,2964.5,4.7455]
[1767122431537,8.0516,2965.5,2964.4,1.48605746]
[1767122431741,8.0516,2965.5,2964.5,4.7511]
[1767122432042,8.0516,2965.5,2964.7,4.7511]
[1767122432341,8.9366,2965.5,2964.5,3.37320836]
[1767122432637,8.0516,2965.4,2964.4,6.24255746]
[1767122432838,8.0516,2965.4,2963.7,8.13059115]
[1767122433038,8.0516,2965.4,2963.8,4.7565]
[1767122433240,8.1190946,2965.4,2963.8,4.7565]
[1767122433443,8.1190946,2965.4,2963.5,4.7607]
[1767122433627,8.0516,2965.3,2963.5,8.1350113]
[1767122433804,8.0516,2965.3,2963.8,3.37404383]
[1767122434016,8.0516,2965.0,2963.7,8.13481003]
[1767122434242,8.0516,2965.0,2963.7,4.7607]
[1767122434448,8.0516,2964.8,2963.8,4.79864046]
[1767122434743,8.9366,2964.7,2963.8,4.7649]
[1767122435113,0.885,2964.7,2964.0,4.7649]
[1767122435745,8.0516,2964.9,2964.0,4.7649]
[1767122435945,8.9366,2964.9,2964.0,4.7649]
[1767122436246,0.885,2964.9,2964.2,4.7728]
[1767122437147,8.9366,2964.9,2964.2,4.7728]
[1767122438148,0.885,2964.9,2964.4,4.7809]
[1767122438523,8.0516,2965.2,2964.4,4.7809]
[1767122438724,8.9366,2965.1,2964.2,4.52559606]
[1767122439056,8.9366,2965.1,2964.0,3.37374923]
[1767122439420,8.9366,2965.1,2963.5,5.17562671]
[1767122439421,8.9366,2965.1,2963.9,4.7938]
[1767122439847,8.9366,2965.1,2964.2,3.37358993]
[1767122440225,8.9366,2965.1,2964.2,3.37357698]
[1767122440427,8.0516,2965.0,2964.1,3.37365324]
[1767122440628,8.0516,2965.0,2964.2,3.37353916]
[1767122440828,8.0516,2965.0,2964.1,4.8065]
[1767122440829,8.0516,2965.0,2964.1,8.18020278]
[1767122441038,8.0516,2965.0,2964.1,8.18019489]
[1767122441242,8.0516,2965.0,2964.1,3.37369489]
[1767122441656,8.0516,2964.8,2964.1,3.37369489]
[1767122441854,0.885,2964.7,2964.1,3.37369489]
[1767122442157,8.0516,2964.6,2964.1,3.37369489]
[1767122443255,8.0516,2964.6,2963.9,6.74785056]
[1767122443453,8.0516,2964.6,2963.9,11.59165056]
[1767122443845,8.0516,2964.6,2963.9,8.21771757]
[1767122444045,8.0516,2964.6,2963.7,3.37408781]
[1767122444246,7.03250923,2965.7,2963.8,3.37404513]
[1767122444549,8.0516,2965.8,2964.6,4.856]
[1767122444756,8.0516,2965.8,2964.8,4.856]
[1767122445358,8.0516,2965.8,2964.9,11.61349006]
[1767122445668,8.0516,2965.8,2965.0,4.8679]
[1767122446464,0.885,2965.7,2964.9,8.26429503]
[1767122446669,7.719,2965.7,2965.0,4.8915]
[1767122446864,7.719,2965.7,2965.0,6.05520901]
[1767122447043,0.885,2965.6,2965.0,6.05520901]
[1767122447444,0.885,2965.6,2965.0,9.42780082]
[1767122447764,7.719,2965.8,2965.1,4.903]
[1767122447963,8.604,2965.7,2965.1,4.903]
[1767122448372,8.604,2965.7,2965.1,6.18420958]
[1767122448541,8.604,2965.7,2965.1,1.28120958]
[1767122448542,7.719,2965.7,2965.1,1.28120958]
[1767122448867,8.604,2965.6,2964.8,8.28728418]
[1767122449069,8.604,2965.6,2964.9,3.37275066]
[1767122449266,8.604,2965.6,2964.9,3.3727488]
[1767122449644,8.604,2965.6,2964.7,0.4856]
[1767122449847,7.719,2965.5,2964.5,4.9256]
[1767122450183,7.719,2965.5,2964.2,4.9368]
[1767122450359,7.719,2965.5,2963.9,4.9368]
[1767122450759,7.719,2965.5,2964.0,8.31060797]
[1767122451167,7.719,2965.3,2964.1,4.9478]
[1767122451972,7.719,2965.1,2964.1,0.002]
[1767122452271,7.719,2965.1,2964.2,5.79106186]
[1767122454062,7.719,2964.9,2964.2,5.79106186]
[1767122455980,0.885,2964.8,2964.2,5.79106186]
[1767122456280,7.719,2965.4,2964.3,4.1161]
[1767122456576,3.37211262,2965.5,2964.3,4.1161]
[1767122456577,8.604,2965.3,2964.3,4.1161]
[1767122458381,8.604,2965.3,2964.4,4.1386]
[1767122458576,7.719,2965.2,2964.4,4.1386]
[1767122460656,7.719,2965.2,2964.5,4.1606]
[1767122460858,0.885,2965.1,2964.5,4.1606]
[1767122461400,8.604,2965.1,2964.2,7.54492711]
[1767122461689,8.604,2965.1,2964.2,4.1714]
[1767122461889,8.604,2965.1,2964.2,7.54498393]
[1767122462095,7.719,2965.1,2964.5,4.1821]
[1767122462384,0.001,2965.6,2964.7,3.2961]
[1767122462571,7.72,2965.9,2964.9,3.2951]
[1767122462779,0.001,2966.2,2965.1,3.2941]
[1767122462780,7.72,2966.2,2965.1,3.2941]
[1767122463081,7.719,2966.1,2965.1,3.2941]
[1767122464190,0.885,2966.0,2965.1,3.2941]
[1767122464359,0.885,2966.0,2965.3,3.3283]
[1767122464559,0.885,2966.0,2965.3,3.37230386]
[1767122464771,0.885,2966.0,2965.4,3.3283]
[1767122465166,0.001,2966.2,2965.4,2.4433]
[1767122465373,7.7324,2966.1,2965.4,2.4433]
[1767122466488,0.001,2966.2,2965.5,3.04906362]
[1767122466690,0.001,2966.2,2965.6,2.4675]
[1767122467186,7.7334,2966.2,2965.6,2.4675]
[1767122467707,7.7334,2966.2,2965.4,2.4794]
[1767122468991,7.7324,2966.1,2965.4,2.4794]
[1767122469189,7.7324,2966.1,2965.2,0.32941]
[1767122469485,7.7324,2966.1,2965.2,2.5028]
[1767122469685,7.7324,2966.1,2965.4,0.002]
[1767122469887,7.7324,2966.1,2965.0,0.03372681]
[1767122470076,7.7324,2966.1,2964.6,2.93461]
[1767122470282,7.7324,2966.1,2964.6,2.5164]
[1767122470778,7.7324,2965.9,2964.5,2.5164]
[1767122471193,7.7324,2965.7,2964.5,2.5164]
[1767122472089,7.7324,2965.7,2964.7,2.5279]
[1767122472401,7.7324,2965.7,2964.6,2.5392]
[1767122472698,7.7324,2965.5,2964.6,2.5392]
[1767122473064,3.37222634,2965.4,2964.6,2.5392]
[1767122473261,4.25715216,2965.5,2964.6,2.5392]
[1767122473465,7.7324,2965.3,2964.7,2.58403022]
[1767122474900,7.7324,2965.3,2964.7,2.5503]
[1767122475297,3.37170493,2965.9,2964.7,2.5503]
[1767122475298,8.6174,2966.0,2964.8,2.5723]
[1767122475801,8.6174,2966.0,2964.7,2.82733]
[1767122476792,7.7324,2966.0,2964.8,2.5939]
[1767122476995,7.7324,2966.0,2964.8,2.5959]
[1767122477194,7.62786098,2966.1,2964.8,2.5959]
[1767122477195,7.7487,2965.8,2964.8,2.5959]
[1767122477399,7.7487,2965.8,2964.9,3.3152947]
[1767122479076,7.7487,2965.8,2964.9,2.6044]
[1767122479304,6.74377044,2965.7,2964.9,2.6044]
[1767122479493,7.7487,2965.6,2964.9,2.6044]
[1767122480092,7.7487,2965.6,2964.8,0.002]
[1767122481205,8.6337,2965.6,2964.4,2.6371]
[1767122481403,6.74422524,2965.5,2964.4,3.71323158]
[1767122481704,7.7487,2965.4,2964.5,0.0337325]
[1767122482071,7.7487,2965.4,2964.5,2.6809325]
[1767122483421,7.7487,2965.2,2964.5,2.6809325]
[1767122483781,7.7487,2965.2,2964.6,2.6669]
[1767122484085,7.7487,2965.2,2964.8,2.6669]
[1767122484703,7.7487,2965.2,2964.5,2.6766]
[1767122484899,7.7487,2965.2,2964.2,0.002]
[1767122484900,7.7487,2965.2,2964.2,3.37553235]
[1767122485113,7.7487,2965.2,2964.5,0.002]
[1767122485277,7.7487,2965.2,2964.2,2.6902]
[1767122485476,7.7487,2965.1,2964.2,2.6902]
[1767122485688,7.7487,2965.1,2964.2,0.002]
[1767122485897,7.7487,2965.1,2964.2,2.6902]
[1767122486099,7.7487,2965.1,2964.1,0.002]
[1767122487604,7.7487,2964.9,2964.1,0.002]
[1767122488708,7.7487,2964.9,2963.4,0.002]
[1767122489011,7.7487,2964.9,2963.4,2.7245]
[1767122489584,7.7487,2964.7,2963.4,2.7245]
[1767122489806,7.7487,2964.5,2963.4,2.7245]
[1767122490010,7.7487,2964.5,2963.4,2.99715]
[1767122491906,7.7487,2964.3,2963.4,2.99715]
[1767122492209,7.7487,2964.3,2963.4,2.7245]
[1767122493893,4.25818341,2964.6,2963.4,2.7245]
[1767122493894,7.7487,2964.1,2963.4,0.002]
[1767122496085,11.12243918,2964.1,2963.4,0.002]
[1767122496282,7.7487,2964.0,2963.4,0.002]
[1767122496708,7.7487,2964.0,2963.4,2.7951]
[1767122498313,7.7487,2963.9,2963.4,2.7951]
[1767122498891,7.7487,2963.9,2963.3,0.002]
[1767122500013,7.7487,2963.9,2963.4,0.002]
[1767122503719,7.7487,2963.9,2963.4,2.8537]
[1767122504522,7.7487,2963.9,2963.4,0.002]
[1767122504724,7.7487,2963.9,2963.4,2.8613]
[1767122504928,7.7487,2963.9,2963.4,0.002]
[1767122505293,7.7487,2963.9,2963.3,0.002]
[1767122505494,7.7487,2963.8,2963.3,0.002]
[1767122505912,7.7487,2963.8,2963.3,2.871]
[1767122510930,7.7487,2963.8,2963.3,0.002]
[1767122511225,7.7487,2963.8,2963.1,0.886]
[1767122511635,7.7487,2963.8,2963.1,3.8078]
[1767122512004,7.7487,2963.8,2963.2,2.9218]
[1767122513600,0.001,2964.0,2963.0,2.9376]
[1767122513601,8.3159,2963.7,2963.0,2.9376]
[1767122514025,8.3159,2963.7,2963.0,0.002]
[1767122515122,3.37362415,2964.2,2963.0,0.002]
[1767122515123,8.3159,2965.1,2963.6,3.44176913]
[1767122515335,8.3159,2965.1,2964.1,2.9482]
[1767122515498,8.3159,2965.1,2964.3,2.9482]
[1767122515704,0.001,2965.4,2964.7,2.9482]
[1767122515935,6.74317906,2966.4,2964.9,2.9981]
[1767122516234,8.3159,2966.1,2964.9,2.9981]
[1767122517122,8.3159,2965.7,2965.0,3.37268128]
[1767122517444,8.3159,2965.7,2965.1,3.0103]
[1767122519237,8.3159,2965.7,2965.2,3.0232]
[1767122520049,8.3159,2966.1,2965.2,3.0232]
[1767122520297,8.3169,2966.4,2965.4,3.0294]
[1767122520426,8.3169,2966.4,2965.6,3.0294]
[1767122521162,3.37125705,2966.3,2965.2,6.40180712]
[1767122521448,8.3159,2966.2,2965.6,3.9217]
[1767122521645,8.3169,2966.4,2965.6,3.37199259]
[1767122521851,8.3169,2966.4,2965.7,3.9217]
[1767122522251,8.3169,2966.4,2965.0,0.76315528]
[1767122522252,8.3159,2966.3,2965.0,0.76315528]
[1767122522561,8.3159,2966.2,2965.1,3.9289]
[1767122522722,8.3159,2966.2,2965.2,3.9289]
[1767122522723,9.2009,2966.2,2965.2,3.9289]
[1767122522922,8.3159,2966.1,2965.3,3.9289]
[1767122523329,8.3159,2966.1,2965.3,3.37232922]
[1767122523529,8.3159,2966.1,2965.4,3.9361]
[1767122524551,3.37144113,2966.1,2965.4,3.9361]
[1767122524748,7.8504,2966.0,2965.1,3.9501]
[1767122525256,11.22204798,2966.0,2965.1,3.9501]
[1767122525565,7.8504,2965.9,2965.1,3.9501]
[1767122526467,7.8504,2965.9,2965.2,3.9639]
[1767122526967,7.8504,2966.2,2965.2,3.9639]
[1767122527334,7.8504,2966.2,2965.4,3.9707]
[1767122527534,7.8504,2966.2,2965.5,3.9707]
[1767122527866,7.8514,2966.4,2965.5,3.9707]
[1767122528336,7.8514,2966.6,2965.6,3.9763]
[1767122528733,3.37014906,2967.3,2965.6,3.9763]
[1767122528734,0.001,2967.6,2966.6,0.6035]
[1767122529039,0.001,2967.6,2965.6,0.38893235]
[1767122529040,8.34156241,2967.4,2966.8,0.5828]
[1767122529561,0.49116241,2967.4,2967.0,0.5933]
[1767122530141,0.49116241,2967.4,2966.9,0.6037]
[1767122530463,7.8504,2967.3,2966.7,1.4887]
[1767122530850,7.8504,2967.3,2966.3,3.3711889]
[1767122531165,7.8504,2967.3,2966.4,0.6139]
[1767122531376,7.8504,2967.2,2966.4,0.6139]
[1767122531571,7.8504,2967.2,2965.8,0.6139]
[1767122531775,7.8504,2967.2,2966.2,0.6139]
[1767122532458,7.8504,2967.2,2966.4,0.624]
[1767122533565,7.8504,2967.0,2966.4,0.624]
[1767122533765,7.8504,2967.0,2966.2,0.885]
[1767122533965,7.8504,2967.0,2966.1,0.634]
[1767122534685,7.8504,2967.0,2966.2,0.6439]
[1767122535237,7.8504,2967.0,2966.2,4.01518931]
[1767122535461,7.8504,2967.0,2966.3,0.6537]
[1767122536564,8.08,2966.9,2966.3,0.6537]
[1767122536985,8.08,2966.9,2966.0,1.5578]
[1767122537189,8.08,2966.9,2966.1,0.885]
[1767122537489,8.08,2966.9,2966.2,0.6823]
[1767122538949,8.08,2966.8,2966.2,0.6823]
[1767122539162,8.08,2966.8,2965.8,4.07253037]
[1767122539363,8.08,2966.6,2965.8,0.7008]
[1767122540177,8.08,2966.6,2965.9,4.08165339]
[1767122540373,8.08,2966.6,2965.9,0.71]
[1767122540707,8.08,2966.9,2966.1,0.71]
[1767122542388,8.08,2966.9,2966.2,0.7279]
[1767122543174,3.37025957,2967.2,2966.2,0.7357]
[1767122543175,8.08,2967.2,2966.2,0.7357]
[1767122543399,8.08,2967.2,2966.2,0.76941316]
[1767122543590,8.08,2967.2,2966.4,0.7357]
[1767122543897,8.08,2967.2,2966.4,0.76941089]
[1767122544099,8.08,2967.2,2966.4,0.7357]
[1767122544270,8.08,2967.2,2966.6,0.7444]
[1767122544466,0.49116241,2967.4,2966.6,0.7444]
[1767122544667,8.08,2967.5,2966.5,0.885]
[1767122544871,0.001,2967.6,2966.6,0.28690862]
[1767122545083,0.001,2967.6,2966.7,0.2613]
[1767122545600,8.08,2967.8,2966.9,0.2603]
[1767122545789,8.08,2967.8,2967.0,0.2603]
[1767122546707,0.17608009,2969.0,2967.8,0.2664]
[1767122547002,8.08,2969.0,2967.8,0.2664]
[1767122547298,8.08,2969.1,2967.9,0.2754]
[1767122547498,8.964,2969.1,2967.9,0.2754]
[1767122547696,8.08,2968.9,2967.7,4.25460371]
[1767122547997,8.08,2968.9,2967.7,4.25460723]
[1767122548176,8.08,2968.9,2967.2,0.2841]
[1767122549100,8.08,2968.9,2967.4,0.2841]
[1767122549473,8.08,2968.9,2967.4,3.65400418]
[1767122549781,8.08,2968.7,2967.5,0.2928]
[1767122550680,8.08,2968.7,2967.4,0.3013]
[1767122550879,8.964,2968.7,2967.4,0.3013]
[1767122551495,8.964,2968.7,2967.3,0.6]
[1767122551669,8.08,2968.4,2967.3,0.6]
[1767122553303,8.08,2968.4,2967.3,0.9092]
[1767122553476,8.08,2968.4,2967.3,4.27925016]
[1767122553803,8.08,2968.2,2967.4,0.3092]
[1767122554508,8.081,2968.7,2967.7,0.3006]
[1767122554693,8.081,2968.7,2967.5,1.1856]
[1767122554694,8.08,2968.6,2967.5,1.1856]
[1767122555098,8.964,2968.6,2967.3,0.6]
[1767122555681,8.964,2968.6,2967.4,0.32569953]
[1767122555879,8.08,2968.4,2967.4,0.32569953]
[1767122556099,8.08,2968.4,2967.4,0.292]
[1767122556593,8.08,2968.4,2967.1,0.2834]
[1767122557198,8.08,2968.4,2967.2,0.275]
[1767122557840,0.885,2968.7,2967.4,0.275]
[1767122557841,8.08,2968.2,2967.4,0.275]
[1767122558011,8.08,2968.2,2967.4,0.97652195]
[1767122558812,8.08,2968.2,2966.9,0.03370521]
[1767122559016,8.08,2968.2,2966.8,0.2666]
[1767122559585,8.08,2968.2,2966.8,0.03370635]
[1767122559910,8.08,2968.0,2967.2,0.2583]
[1767122560809,8.08,2968.0,2967.4,0.2501]
[1767122560979,8.08,2968.0,2967.4,0.002]
[1767122562219,8.08,2967.9,2967.4,0.002]
[1767122562520,8.08,2968.4,2967.4,0.2361]
[1767122562898,8.08,2968.3,2967.4,0.2361]
[1767122564021,3.36954924,2968.7,2967.4,0.2361]
[1767122564022,8.08,2969.2,2967.9,8.0403]
[1767122564336,8.08,2969.2,2967.4,6.74190698]
[1767122564489,8.08,2969.2,2967.5,8.0403]
[1767122564988,7.02530709,2968.0,2966.5,8.0403]
[1767122565186,8.964,2967.9,2966.2,8.0403]
[1767122565381,8.964,2967.9,2966.1,0.69118328]
[1767122565382,8.08,2967.9,2966.3,4.24433328]
[1767122565720,8.08,2967.7,2966.3,0.87314833]
[1767122565900,8.08,2967.7,2966.4,8.07401089]
[1767122566111,8.08,2967.5,2966.4,3.37106384]
[1767122566415,8.964,2967.5,2966.5,8.085]
[1767122566587,8.964,2967.5,2966.7,8.085]
[1767122566781,8.964,2967.5,2966.6,1.14560638]
[1767122567084,8.964,2967.5,2966.4,8.085]
[1767122567311,8.08,2967.5,2966.5,8.11870975]
[1767122567514,8.08,2967.5,2966.5,8.085]
[1767122568216,8.08,2967.5,2966.6,8.085]
[1767122568897,8.4459,2967.4,2966.6,8.085]
[1767122569197,8.4459,2967.4,2966.7,0.8085]
[1767122569593,8.4459,2967.4,2966.7,8.8935]
[1767122570292,8.4459,2967.3,2966.7,8.8935]
[1767122571824,8.4459,2967.3,2966.7,0.8085]
[1767122571991,8.4459,2967.3,2966.5,8.085]
[1767122572398,0.884,2967.5,2966.5,8.085]
[1767122572599,0.884,2967.5,2966.6,8.085]
[1767122572860,9.3299,2967.5,2966.6,8.085]
[1767122573805,8.4459,2967.5,2966.6,8.085]
[1767122574015,8.4459,2967.5,2966.7,0.8085]
[1767122574318,8.4459,2967.3,2966.4,0.002]
[1767122576311,8.4459,2967.1,2966.1,0.002]
[1767122576506,8.4459,2966.9,2966.1,0.002]
[1767122577530,8.4459,2966.9,2965.9,3.83]
[1767122577840,8.4459,2966.9,2965.9,1.1915]
[1767122578136,8.4459,2966.9,2965.6,8.085]
[1767122578337,3.37063502,2966.8,2966.0,0.002]
[1767122578536,8.4459,2966.7,2966.0,0.002]
[1767122578736,9.3299,2966.7,2966.0,8.087]